Cogmind - Beta 11 --- EXPLORER MODE // 2022.03.18 @ 09:18:28 Player: H_ Result: Self-destructed Performance ------------- Evolutions (2) 1000 Regions Visited (5) 1000 Robots Destroyed (26) 130 Value Destroyed (678) 678 Prototype IDs (0) 0 Alien Tech Used (0) 0 Bonus (7) 7 TOTAL SCORE: 2815 Bonus ------- Follower Combat Kills 7 Cogmind --------- Core Integrity 550/550 Matter 255/300 Energy 265/265 System Corruption 0% Temperature Cool (9) Movement Rolling (95) Location -8/Materials Parts ------- > --- POWER (2) -------- Light Ion Engine Nuclear Core > --- PROPULSION (4) --- Wheel Compact Wheel Compact Wheel Compact Wheel > --- UTILITY (4) ------ High-capacity Storage Unit Makeshift Terrain Scanner Targeting Computer > --- WEAPON (2) ------- Gauss Rifle Makeshift Shrapnel Gun > --- INVENTORY (20) --- Ion Engine Experimental Sensor Array Seismic Detector Makeshift Cloaking Device Heavy Armor Plating Authchip [Processor] Shock Rifle Light Assault Rifle Light Assault Rifle Makeshift Shrapnel Gun Rocket Launcher Remote Datajack Peak State ------------ > --- POWER ------------ Light Ion Engine Nuclear Core > --- PROPULSION ------- VSS Leg Compact Wheel Compact Wheel Compact Wheel > --- UTILITY ---------- High-capacity Storage Unit Makeshift Terrain Scanner Targeting Computer Makeshift System Shield > --- WEAPON ----------- Gauss Rifle Makeshift Shrapnel Gun > --- INVENTORY -------- Ion Engine Wheel Experimental Sensor Array Seismic Detector Makeshift Cloaking Device Authchip [Processor] Shock Rifle Light Assault Rifle Light Assault Rifle Makeshift Shrapnel Gun Rocket Launcher Remote Datajack [Rating: 34] Favorites ----------- Power Light Ion Engine Engine Light Ion Engine Power Core Nuclear Core Propulsion Compact Wheel Leg Aluminum Leg Wheel Compact Wheel Utility Targeting Computer Device Improved Terrain Scanner Storage Large Storage Unit Processor Targeting Computer Hackware Makeshift System Shield Weapon Light Assault Rifle Energy Gun EM Pulse Gun Ballistic Gun Light Assault Rifle Special Weapon Remote Datajack Build | -11 -10 -10 -10 -9 -8 ------- Run | Scr Mat Min Exi Min Mat Slots Evolved 5 | . 1 . . . 4 Power 1 | . . . . . 1 Propulsion 2 | . . . . . 2 Utility 2 | . 1 . . . 1 Weapon . | . . . . . . Parts Attached 38 | 10 9 1 6 4 8 Power 6 | 2 . 1 . 1 2 Engine 5 | 2 . 1 . 1 1 Core 1 | . . . . . 1 Reactor . | . . . . . . Propulsion 11 | 4 3 . . . 4 Treads . | . . . . . . Leg 3 | 2 . . . . 1 Wheel 8 | 2 3 . . . 3 Hover . | . . . . . . Flight . | . . . . . . Utility 9 | 2 2 . 1 2 2 Device 2 | . 1 . 1 . . Storage 5 | 1 1 . . 2 1 Processor 1 | 1 . . . . . Hackware 1 | . . . . . 1 Protection . | . . . . . . Artifact . | . . . . . . Weapon 12 | 2 4 . 5 1 . Energy Gun 4 | 2 1 . 1 . . Energy Cannon . | . . . . . . Ballistic Gun 6 | . 3 . 2 1 . Ballistic Cannon . | . . . . . . Launcher . | . . . . . . Special Weapon 2 | . . . 2 . . Impact Weapon . | . . . . . . Slashing Weapon . | . . . . . . Piercing Weapon . | . . . . . . Special Melee Weapon . | . . . . . . Unidentified Prototypes . | . . . . . . Parts Lost 1 | . . . . . 1 Power . | . . . . . . Propulsion . | . . . . . . Utility 1 | . . . . . 1 Weapon . | . . . . . . Highest Loss Streak 1 | . . . . . 1 To Critical Strikes . | . . . . . . Average Slot Usage (%) 99 | . 99 100 100 100 98 Engine 11 | . 12 12 12 12 8 Wheel 25 | . 25 25 25 25 32 Device 11 | . 11 12 12 12 8 Storage 11 | . 12 12 12 12 8 Processor 11 | . 12 12 12 12 8 Energy Gun 4 | . 13 . . . . Ballistic Gun 19 | . 11 25 22 23 16 Naked Turns . | . . . . . . Heaviest Build 57 | 19 28 26 31 31 57 Greatest Support 58 | 26 32 32 32 32 58 Greatest Overweight (x) . | . . . . . . Average Overweight (x) . | . . . . . . Largest Inventory Capacity 25 | 10 15 15 15 25 20 Average Capacity 14 | 9 14 15 15 15 19 Most Carried 15 | 7 15 15 15 15 14 Average Carried 12 | 3 10 13 14 14 11 Final Capacity 20 | 10 15 15 15 15 20 Final Carried 15 | 7 14 14 15 15 13 Class Distribution -------------------- 100% | Hacker-Mutant Dominant Class ---------------- Hacker-Mutant | -10/Materials Hacker-Mutant | -10/Mines Hacker-Mutant | -10/Exiles Hacker-Mutant | -9/Mines Hacker-Mutant | -8/Materials Resources | -11 -10 -10 -10 -9 -8 ----------- Run | Scr Mat Min Exi Min Mat Matter Collected 726 | 300 71 59 76 170 50 Remotely . | . . . . . . Salvage Created 977 | 140 350 63 94 306 24 Parts 59 | 16 14 9 5 13 2 Haulers Intercepted . | . . . . . . Recyclers Shooed . | . . . . . . Parts Field Recycled . | . . . . . . Retrieved Matter . | . . . . . . Parts Self-Destructed . | . . . . . . Prevented . | . . . . . . Kills | -11 -10 -10 -10 -9 -8 ------- Run | Scr Mat Min Exi Min Mat Combat Hostiles Destroyed 21 | . 6 4 . 10 1 Guns 19 | . 4 4 . 10 1 AOE 1 | . 1 . . . . Classes Destroyed 6 | 2 2 1 . 1 . Tunneler 3 | 3 . . . . . Recycler 1 | 1 . . . . . Watcher 3 | . 3 . . . . Swarmer 6 | . . 4 . 2 . Grunt 13 | . 6 . . 6 1 Assembled 2 | . . . . 2 . Best Kill Streak 4 | 2 3 2 . 4 1 Combat Bots Only 4 | . 2 2 . 4 1 Max Kills in Single Turn 1 | 1 1 1 . 1 1 Gunslinging . | . . . . . . Exploded 1 | . 1 . . . . Melee . | . . . . . . Uniques/NPCs Destroyed . | . . . . . . Combat | -11 -10 -10 -10 -9 -8 -------- Run | Scr Mat Min Exi Min Mat Damage Taken 388 | . 141 22 . 186 39 Core 85 | . 28 8 . 49 . Absorbed by Shields . | . . . . . . Regen/Repaired (Parts) 29 | . 29 . . . . Core Remaining (%) 83 | 100 . . . 66 . Volleys Fired 76 | 7 20 7 9 29 4 Largest 2 | 2 2 2 2 2 1 Hottest 80 | 80 80 40 50 52 24 Shots Fired 112 | 14 36 14 13 31 4 Gun 112 | 14 36 14 13 31 4 Cannon . | . . . . . . Launcher . | . . . . . . Special . | . . . . . . Kinetic 75 | . 16 14 10 31 4 Thermal . | . . . . . . Explosive . | . . . . . . Electromagnetic 37 | 14 20 . 3 . . Robot Hit Streak 35 | 13 35 12 22 29 11 Robot Miss Streak 2 | . 1 1 . 2 1 Penetration Max 1 | . . . . 1 . Secondary Targets 2 | . . 2 . . . Max Gunslinging Chain 1 | . . 1 . . . Shots Hit Robots 98 | 13 33 12 10 26 4 Core Hits 52 | 5 17 6 6 14 4 Critical Kills . | . . . . . . Critical Parts Destroyed 1 | . . 1 . . . Critical Strikes 4 | 2 1 1 . . . Destroy 1 | . . 1 . . . Corrupt 3 | 2 1 . . . . Melee Attacks . | . . . . . . Impact . | . . . . . . Slashing . | . . . . . . Piercing . | . . . . . . Sneak Attacks . | . . . . . . Combat Hostiles . | . . . . . . Follow-up Attacks . | . . . . . . Damage Inflicted 1418 | 200 393 98 94 543 90 Guns 1336 | 159 352 98 94 543 90 Cannons . | . . . . . . Explosions 82 | 41 41 . . . . Melee . | . . . . . . Ramming . | . . . . . . Kinetic 930 | . 105 98 94 543 90 Thermal 82 | 41 41 . . . . Explosive . | . . . . . . Electromagnetic 406 | 159 247 . . . . Impact . | . . . . . . Slashing . | . . . . . . Piercing . | . . . . . . Highest Corruption . | . . . . . . Average Corruption . | . . . . . . Corruption Purged . | . . . . . . Corruption Blocked . | . . . . . . Overload Shots . | . . . . . . Overflow Damage . | . . . . . . Projectiles . | . . . . . . Explosions . | . . . . . . Melee . | . . . . . . Knockbacks . | . . . . . . Impact . | . . . . . . Kinetic . | . . . . . . Secondary . | . . . . . . Self-Inflicted Damage . | . . . . . . Shots . | . . . . . . Rammed . | . . . . . . Targets Rammed . | . . . . . . Kicked . | . . . . . . Crushed . | . . . . . . Highest Temperature 126 | 72 126 . 20 24 2 Average Temperature 32 | 28 52 . 10 10 2 Received Heat Transfer 285 | . 72 . . 177 36 Siege Activations . | . . . . . . Robots Corrupted 1 | . 1 . . . . Combat Hostiles 1 | . 1 . . . . Parts Fried 1 | . 1 . . . . Impact Corruptions . | . . . . . . Robots Melted . | . . . . . . Combat Hostiles . | . . . . . . Parts Melted . | . . . . . . Heat Transferred 150 | 100 50 . . . . Parts Sabotaged . | . . . . . . Parts Stolen . | . . . . . . Parts Stripped . | . . . . . . Power Chain Reactions 3 | 2 1 . . . . Missiles Intercepted . | . . . . . . Alert | -11 -10 -10 -10 -9 -8 ------- Run | Scr Mat Min Exi Min Mat Peak Influence 165 | 20 152 100 . 165 64 Initial 18 | . 9 . . . 18 Average 62 | 9 67 71 . 65 20 Maximum Alert Level . | . . . . . . Low Security (%) 100 | 100 100 100 . 100 100 Level 1 . | . . . . . . Level 2 . | . . . . . . Level 3 . | . . . . . . Level 4 . | . . . . . . Level 5 . | . . . . . . High Security . | . . . . . . Max Security . | . . . . . . Squads Dispatched 1 | . . . . . 1 Investigation . | . . . . . . Extermination . | . . . . . . Reinforcement 1 | . . . . . 1 Assault . | . . . . . . Garrison . | . . . . . . Intercept . | . . . . . . Searches Triggered . | . . . . . . Construction Impeded . | . . . . . . Haulers Reinforced . | . . . . . . Active Scanning Responses . | . . . . . . Cargo Convoy Interrupts . | . . . . . . Stealth | -11 -10 -10 -10 -9 -8 --------- Run | Scr Mat Min Exi Min Mat Distress Signals 1 | . . . . . 1 Communications Jammed . | . . . . . . Distress Signals . | . . . . . . Times Spotted 28 | . 10 4 . 10 4 Peak Tracking Total 3 | . 2 2 . 2 3 Tactical Retreats . | . . . . . . Traps | -11 -10 -10 -10 -9 -8 ------- Run | Scr Mat Min Exi Min Mat Traps Triggered 3 | . 3 . . . . Indirectly . | . . . . . . Trap Hack Attempts . | . . . . . . Triggered . | . . . . . . Disarmed . | . . . . . . Reprogrammed . | . . . . . . Reused . | . . . . . . Traps Extracted . | . . . . . . Installed 5 | . . 5 . . . Triggered . | . . . . . . Machines | -11 -10 -10 -10 -9 -8 ---------- Run | Scr Mat Min Exi Min Mat Machines Disabled 2 | . . . 1 1 . Max in Single Turn 1 | . . . 1 1 . Machines Sabotaged . | . . . . . . Garrisons Compromised . | . . . . . . Overloaded Fab Kills . | . . . . . . Hacking | -11 -10 -10 -10 -9 -8 --------- Run | Scr Mat Min Exi Min Mat Machines Accessed 16 | . 10 . 4 . 2 Terminals 8 | . 7 . . . 1 Fabricators . | . . . . . . Repair Stations 1 | . 1 . . . . Recycling Units 2 | . 2 . . . . Scanalyzers . | . . . . . . Garrison Access 1 | . . . . . 1 Total Hacks 83 | . 28 . 49 . 6 Successful 79 | . 26 . 49 . 4 Failed 4 | . 2 . . . 2 Catastrophic 1 | . 1 . . . . Database Lockouts . | . . . . . . Manual 27 | . 16 . 5 . 6 Terminals 22 | . 19 . . . 3 Fabricators . | . . . . . . Repair Stations 6 | . 6 . . . . Recycling Units 3 | . 3 . . . . Scanalyzers . | . . . . . . Garrison Access 3 | . . . . . 3 Terminal Hacks 59 | . 10 . 49 . . Record 49 | . . . 49 . . Robot Analysis 4 | . 4 . . . . Emergency Access Points 2 | . 2 . . . . Terminal Index 1 | . 1 . . . . Locate Traps 2 | . 2 . . . . Zone Layout 1 | . 1 . . . . Fabricator Hacks . | . . . . . . Repair Station Hacks 6 | . 6 . . . . Scan Component 3 | . 3 . . . . Repair 3 | . 3 . . . . Recycling Unit Hacks 2 | . 2 . . . . Report Inventory 2 | . 2 . . . . Scanalyzer . | . . . . . . Garrison Access Hacks . | . . . . . . Unauthorized Hacks 12 | . 8 . . . 4 Terminals 8 | . 7 . . . 1 Track 2 | . 2 . . . . Botnet 5 | . 4 . . . 1 Operators 1 | . 1 . . . . Fabricators . | . . . . . . Repair Stations . | . . . . . . Recycling Units 1 | . 1 . . . . Recyclers 1 | . 1 . . . . Scanalyzers . | . . . . . . Garrison Access 3 | . . . . . 3 Broadcast 1 | . . . . . 1 Intercept 1 | . . . . . 1 Watchers 1 | . . . . . 1 Data Cores Recovered . | . . . . . . Used . | . . . . . . Hacking Detections 9 | . 8 . . . 1 Full Trace Events . | . . . . . . Feedback Events . | . . . . . . Feedback Blocked . | . . . . . . Robot Schematics Acquired . | . . . . . . Robots Built . | . . . . . . Authchips . | . . . . . . Time . | . . . . . . Total Robot Build Rating . | . . . . . . Part Schematics Acquired . | . . . . . . Parts Built . | . . . . . . Authchips . | . . . . . . Time . | . . . . . . Total Part Build Rating . | . . . . . . Parts Repaired 3 | . 3 . . . . Time 88 | . 88 . . . . Parts Recycled . | . . . . . . Recycled Matter . | . . . . . . Retrieved Matter . | . . . . . . Retrieved Components . | . . . . . . Parts Scanalyzed . | . . . . . . Part Schematics Acquired . | . . . . . . Parts Damaged . | . . . . . . Bothacking | -11 -10 -10 -10 -9 -8 ------------ Run | Scr Mat Min Exi Min Mat Used RIF Installer . | . . . . . . Robots Hacked . | . . . . . . Non-combat . | . . . . . . Combat . | . . . . . . Robot Hacks Applied . | . . . . . . Relay Couplers Released . | . . . . . . Fabnet Peak Effective % . | . . . . . . Robots Rewired . | . . . . . . Allies Hacked . | . . . . . . Hacks Repelled . | . . . . . . Allies | -11 -10 -10 -10 -9 -8 -------- Run | Scr Mat Min Exi Min Mat Total Allies 3 | . . . . 3 . Largest Group 3 | . . . . 3 3 Highest-Rated Group 40 | . . . . 40 40 Highest-Rated Ally 16 | . . . . 16 16 Total Orders . | . . . . . . Ally Attacks 10 | . . . . . 10 Total Damage 104 | . . . . . 104 Kills 1 | . . . . . 1 Allies Corrupted . | . . . . . . Allies Melted . | . . . . . . Intel | -11 -10 -10 -10 -9 -8 ------- Run | Scr Mat Min Exi Min Mat Robot Analysis Total 4 | . 4 . . . . Derelict Logs Recovered . | . . . . . . Drone Launches . | . . . . . . Drone Recoveries . | . . . . . . Exploration | -11 -10 -10 -10 -9 -8 ------------- Run | Scr Mat Min Exi Min Mat Turns Passed 3074 | 118 963 443 767 646 137 Spaces Moved 2635 | 76 795 387 730 550 97 Core 14 | 14 . . . . . Treads . | . . . . . . Legs 21 | 21 . . . . . Wheels 2600 | 41 795 387 730 550 97 Hover . | . . . . . . Flight . | . . . . . . Fastest Speed 50 | 50 90 100 100 100 95 Average Speed 99 | 90 99 100 100 100 95 Slowest Speed 120 | 120 100 100 100 100 95 Overloaded Moves . | . . . . . . Propulsion Burnouts . | . . . . . . Robots Hopped . | . . . . . . Cave-ins Triggered . | . . . . . . Exploration Rate (%) 58 | 5 98 56 92 93 9 Regions Visited 5 Branch Regions 3 Pre-discovered Areas 1 | . . . 1 . . Known Exits Taken 5 | 1 1 1 1 1 . Unknown Exits Taken . | . . . . . . Scrap Searched 1 | . . . . 1 . Spaces Dug . | . . . . . . Terrain Destroyed 18 | 13 3 . . 2 . Melee . | . . . . . . Projectile 2 | . . . . 2 . AOE 16 | 13 3 . . . . Terrain Rammed . | . . . . . . Walls Destroyed . | . . . . . . Machines Disabled . | . . . . . . Actions | -11 -10 -10 -10 -9 -8 --------- Run | Scr Mat Min Exi Min Mat Total 2988 | 109 935 433 758 616 137 Wait 173 | . 93 29 . 28 23 Move 2630 | 75 794 386 729 549 97 Hop . | . . . . . . Pick Up 42 | 15 15 2 5 2 3 Fast Attach 2 | 1 . . 1 . . Attach 13 | 6 1 . 1 . 5 Detach 1 | . . . 1 . . Swap 23 | 3 8 1 4 4 3 Drop 22 | 2 4 3 7 4 2 Fire 76 | 7 20 7 9 29 4 Melee . | . . . . . . Ram . | . . . . . . Kick . | . . . . . . Crush . | . . . . . . Escape Stasis . | . . . . . . Rewire 1 | . . . 1 . . Trap 5 | . . 5 . . . Miscellaneous . | . . . . . . Route ------- -11/Scrapyard -10/Materials (discovered 5 exits: *Mat x3 / *Min x2) -10/Mines -10/Exiles -9/Mines (discovered 2 exits: *Mat x2) -8/Materials History --------- Turn | Location | Event 8 | -11/Scrapyard | Identified exit to Materials 8 | -11/Scrapyard | Discovered exit to Materials (range 15) 119 | -11/Scrapyard | Entered Materials 119 | -10/Materials | Evolved 1 slot: Utility x1 225 | -10/Materials | Identified exit to Mines 225 | -10/Materials | Discovered exit to Mines (range 8) 312 | -10/Materials | Build established: Hacker-Mutant 438 | -10/Materials | Identified exit to Materials 438 | -10/Materials | Discovered exit to Materials (range 15) 603 | -10/Materials | Discovered exit to Mines (range 16) 718 | -10/Materials | Discovered exit to Materials (range 15) 833 | -10/Materials | Discovered exit to Materials (range 12) 888 | -10/Materials | Repaired Corrupted Com. Wheel? 950 | -10/Materials | Repaired Com. Wheel 978 | -10/Materials | Repaired Com. Wheel 1082 | -10/Materials | Entered Mines 1089 | -10/Mines | Received a Rocket Launcher from a helpful Derelict 1094 | -10/Mines | Met a Derelict bent on vengeance 1385 | -10/Mines | Found a hidden stash of uninstalled traps 1493 | -10/Mines | Found a damaged Exp. Sensor Array with a note attached 1495 | -10/Mines | Found Prototype Device 1521 | -10/Mines | Deemed a non-threat by the Exiles lab entrance 1521 | -10/Mines | Identified exit to Exiles 1521 | -10/Mines | Discovered exit to Exiles (range 5) 1525 | -10/Mines | Entered Exiles 1525 | -10/Exiles | Found Exiles lab destroyed 1730 | -10/Exiles | Learned location of Zion (-7) 1795 | -10/Exiles | Identified exit to Mines 1795 | -10/Exiles | Discovered exit to Mines (range 14) 2292 | -10/Exiles | Entered Mines 2299 | -9/Mines | Identified exit to Materials 2299 | -9/Mines | Discovered exit to Materials (range 9) 2379 | -9/Mines | A weapon hastily lodged in a ceiling crevice suddenly fell to the ground 2467 | -9/Mines | Assembled infested the area 2643 | -9/Mines | Discovered exit to Materials (range 4) 2783 | -9/Mines | Assisted by bots powering up and referring to "LRC-V3" 2938 | -9/Mines | Entered Materials 2938 | -8/Materials | Accompanied by 3 allies 2938 | -8/Materials | Evolved 4 slots: Power x1, Propulsion x2, Utility x1 3075 | -8/Materials | Self-destructed Last Messages --------------- 03029_ Acquired Hvy. Armor Plating. 03032_ Connecting with Garrison Access... >>Trojan(Watchers) Trojan loaded successfully. Testing... Watcher tracking enabled and active. >>Trojan(Broadcast) Trojan loaded successfully. Testing... Broadcasting enabled and active. >>Trojan(Intercept) Trojan loaded successfully. Testing... Patched into local tactical coordination network. 03062_ >> BROADCAST: Garrison Access M001 dispatching Reinforcement squad: 3x G-47 Trooper. 03062_ ALERT: Hostiles spotted, dispatching reinforcements to Terminal M002. 03070_ Mak. System Shield destroyed. 03073_ G-47 Trooper destroyed. Map ----- +----------------------------------------------------+ | | | | | | | ???#?????????????????????????????????????????????? | | ???????????????###########???#???????????????????? | | ??##???#?? ? #= #???????????????????????? | | ??# ###???????# T ##?##???????????????????? | | ???? #?####### #???????????????????????? | | ??#### ### # #??#????????????????????? | | ??# % # ##??#?????#?????????????? | | ??# / """" #??#????????????????????? | | ??# # """" = #?#?????????????????????? | | #?######## # """" #????? ?????????????????? | | ??????######+##############??????????????????????? | | ???????# ##????????? ????? ??????#???????? | | ???????#= #??????#??? ????? ???#??????????? | | ???????# #???????????????????????????????? | | ??????## """"""" ##########??????????????????????? | | #????#?# """"""" + ##?????????????????????? | | ???????# """"""" ######## #?????? ??????????????? | | ???????# """"""" #??????# #??????? ?#????????????? | | ???#???# """"""" ##?????# #??????????????????????? | | ????????#?#########?????#w#????? +??????#???????? | | ????#???????#????######## ##### #? ??????#?????? | | ???????????#?????# ! gg% #??????????????? | | ?????????#???????# #@##### + """?????????? | | ???#???#?#???????# " " # #???? ? # #???????? | | ????#??#??????#??# "G" # #???????? ??T" #???????? | | ?????????????????# " # #??????????#???#???????? | | ???????????????#?#[ # #???#??????????????????? | | ????????????##???######## #??#???????????????????? | | ??????????????????????#?# #?????? ???????????????? | | ?????????????#??????????#+#??????????????????????? | | ????????????#??????????? ???????#???????#??????? | | ??????????????#???#????? ???? ????????????????? | | ????????????????????????"""??????????????????????? | | ??????????????????#?????"""??????????????????????? | | ??????????????????#?????"""??????????????????????? | | ?????????????????????????????????????????????????? | | ??????????????????????""?"???????????????????????? | | ???????????????????????????? ????????????????????? | | ?????????????????????????????#???????????????????? | | ?????????????????????????????????????????????????? | | ??????????????????????????????w??????????????????? | | ?????????????????????????????????????????????????? | | ?????????????????????????????????????????????????? | | ??????????????????????????w??????????????????????? | | ?????????????????????????????????????????????????? | | ?????????????????????????????????????????????????? | | ?????????????????????????????????????????????????? | +----------------------------------------------------+ Best States ------------- Heat Dissipation 31 Energy Generation 19 Energy Capacity 275 Matter Stores 300 Matter Capacity 300 Sight Range 16 Terrain Scan Range 18 Terrain Scan Density 10 Resistance: KI 35 Resistance: TH 35 Resistance: EX 35 Resistance: EM 35 Resistance: I 35 Resistance: S 35 Resistance: P 35 Evasion (%) 50 Targeting Accuracy 5 Offensive Hacking 20 Defensive Hacking 11 Authchip Count 1 Item Schematics ----------------- None Robot Schematics ------------------ None Fabricated ------------ Nothing Alien Tech Used ----------------- None Achievements -------------- None Challenges ------------ None Game ------ Seed GodSignalPenetrator Manual? 0 Play Time 00:56:16 Cumulative 196.1 hours Start 2022.03.18 @ 08:23:42 End 2022.03.18 @ 09:18:28 Sessions 1 Manual Loads 0 Difficulty Explorer Special Mode None Game No. 41 Rogue 12 Adventurer 0 Explorer 29 Win Type - Total 4 Types 2/0/2/0/0/0/0/0/0 Lore% 70 Gallery% 76 Achievement% 70 Wizard Run 0 Options --------- ASCII 0 Keyboard 0 Movement Mouse Keybinds 0 Fullscreen 0 Font 20/Cog Map View 76x50 Tactical HUD 1 Map Filters NONE Filters NONE Steam 1 RUN: 6ce9b93d-525f-4001-b343-e62170fe124c